bitfinex/quotes_BTCUSD_20251209
["timestamp","ask_amount","ask_price","bid_price","bid_amount"]
[1765301959466,0.00039768,93794.0,93793.0,1.38037]
[1765301959671,0.00039768,93794.0,93793.0,0.3007]
[1765301959890,0.04698768,93794.0,93793.0,0.3027]
[1765301960114,0.00039768,93794.0,93793.0,0.314]
[1765301960330,0.00201055,93794.0,93793.0,0.312]
[1765301960538,0.0030251,93794.0,93793.0,0.313]
[1765301960954,0.0040251,93794.0,93793.0,0.313]
[1765301961095,0.0040251,93794.0,93793.0,0.312]
[1765301961296,0.0040251,93794.0,93793.0,0.313]
[1765301962512,0.21725835,93794.0,93793.0,0.313]
[1765301962744,0.44323134,93794.0,93793.0,0.001]
[1765301963535,0.44323134,93794.0,93764.0,0.02675]
[1765301963536,0.01066268,93785.0,93780.0,0.74386544]
[1765301963858,0.01066268,93785.0,93783.0,0.2907]
[1765301963989,0.22391605,93786.0,93785.0,0.0213]
[1765301964202,0.01066325,93780.0,93779.0,0.01]
[1765301964397,0.01066314,93781.0,93779.0,0.3007]
[1765301964595,0.01066314,93781.0,93780.0,0.0213]
[1765301964833,0.22392297,93783.0,93778.0,0.01066348]
[1765301965074,0.001,93785.0,93784.0,1.01]
[1765301965314,0.001,93785.0,93784.0,1.44418]
[1765301965778,0.01066211,93790.0,93789.0,0.0213]
[1765301966915,0.010662,93791.0,93790.0,0.0213]
[1765301967867,0.22390207,93791.0,93790.0,0.0213]
[1765301968091,0.22690207,93791.0,93790.0,0.0213]
[1765301968297,0.003,93791.0,93790.0,0.30034234]
[1765301968522,0.003,93791.0,93790.0,1.59104234]
[1765301968769,0.003,93791.0,93790.0,1.3778]
[1765301969236,0.004,93791.0,93790.0,1.3778]
[1765301969451,0.2181701,93791.0,93790.0,1.312]
[1765301969655,0.2181701,93791.0,93790.0,0.2907]
[1765301969861,0.2181701,93791.0,93781.0,0.74386544]
[1765301969862,0.4282101,93791.0,93781.0,0.74386544]
[1765301970066,0.21326054,93782.0,93781.0,1.03456544]
[1765301970318,0.21326054,93782.0,93770.0,0.01066439]
[1765301970319,0.213281,93773.0,93772.0,0.74386544]
[1765301970650,0.01066382,93775.0,93763.0,0.74386544]
[1765301970651,0.21330148,93764.0,93763.0,0.74386544]
[1765301970861,0.21330603,93762.0,93761.0,0.01]
[1765301971902,0.21330603,93762.0,93761.0,0.01018973]
[1765301972304,0.21530603,93762.0,93761.0,0.01018973]
[1765301974173,0.002,93762.0,93761.0,0.01018973]
[1765301974314,0.002,93762.0,93761.0,0.03693973]
[1765301975695,0.002,93762.0,93761.0,0.01018973]
[1765301976219,0.002,93762.0,93761.0,0.00018973]
[1765301976430,0.002,93762.0,93761.0,0.02148973]
[1765301977093,0.21530603,93762.0,93761.0,0.02148973]
[1765301977287,0.21530603,93762.0,93752.0,0.99103005]
[1765301977288,0.22398088,93758.0,93757.0,0.31198973]
[1765301977434,0.22398088,93758.0,93757.0,0.2907]
[1765301978046,0.28872088,93758.0,93757.0,0.2907]
[1765301978328,0.2133356,93749.0,93748.0,0.2907]
[1765301978579,0.010667,93747.0,93744.0,0.02128973]
[1765301978779,0.22399999,93750.0,93749.0,0.04445973]
[1765301979113,0.19052512,93750.0,93749.0,0.04445973]
[1765301979416,0.01066587,93757.0,93749.0,0.04445973]
[1765301979417,0.01066643,93752.0,93751.0,0.02128973]
[1765301979621,0.22399521,93752.0,93751.0,0.02128973]
[1765301981666,0.01066621,93754.0,93752.0,0.02128973]
[1765301981978,0.22398534,93757.0,93756.0,0.02128973]
[1765301982254,0.22398534,93757.0,93756.0,0.08708973]
[1765301982574,0.01066587,93757.0,93756.0,0.08708973]
[1765301982787,0.22398327,93757.0,93756.0,0.08708973]
[1765301983885,0.22398327,93757.0,93744.0,0.01039471]
[1765301983886,0.21334471,93745.0,93744.0,0.01039471]
[1765301984022,0.21334471,93745.0,93744.0,0.00039471]
[1765301984230,0.21334471,93745.0,93744.0,0.02168444]
[1765301985148,0.21434471,93745.0,93744.0,0.02168444]
[1765301985351,0.37940758,93745.0,93744.0,0.00039471]
[1765301985551,0.44093057,93745.0,93744.0,0.00039471]
[1765301985919,0.44193057,93745.0,93744.0,0.00039471]
[1765301987111,0.44093057,93745.0,93744.0,0.00039471]
[1765301987326,0.44693057,93745.0,93744.0,0.00039471]
[1765301987531,0.44893057,93745.0,93744.0,0.00039471]
[1765301987854,0.44693057,93745.0,93744.0,0.00039471]
[1765301988277,0.45093057,93745.0,93744.0,0.00139471]
[1765301990165,0.22495758,93745.0,93744.0,0.00139471]
[1765301990856,0.38392758,93745.0,93744.0,0.00139471]
[1765301991385,0.44645057,93745.0,93744.0,0.00139471]
[1765301997058,0.46341057,93745.0,93744.0,0.00139471]
[1765302002128,0.48549856,93745.0,93744.0,1e-08]
[1765302002358,0.21346995,93690.0,93689.0,1.03317]
[1765302002638,0.21346995,93690.0,93689.0,1.03356493]
[1765302002639,0.19612686,93690.0,93689.0,1.03356493]
[1765302002834,0.24542686,93690.0,93689.0,0.00039493]
[1765302003482,0.24542686,93690.0,93689.0,0.00239493]
[1765302003670,0.21344781,93700.0,93697.0,0.02128973]
[1765302003844,0.01696,93702.0,93701.0,0.01]
[1765302004231,0.01067053,93716.0,93709.0,0.01067133]
[1765302004431,0.0493,93735.0,93709.0,0.01067133]
[1765302004432,0.0106703,93718.0,93713.0,0.01067087]
[1765302004671,0.0106703,93718.0,93717.0,0.02128973]
[1765302004938,0.21340257,93720.0,93719.0,0.02128973]
[1765302005243,0.01696,93728.0,93720.0,0.06064]
[1765302005449,0.00199998,93760.0,93720.0,0.06064]
[1765302005450,0.01066837,93735.0,93730.0,0.23466715]
[1765302005652,0.21336974,93734.0,93733.0,0.02128973]
[1765302006196,0.21336974,93734.0,93733.0,0.02168466]
[1765302006381,0.21336974,93734.0,93733.0,0.00039493]
[1765302006996,0.21336974,93734.0,93733.0,0.00339493]
[1765302007131,0.21336974,93734.0,93733.0,0.00039493]
[1765302007541,0.39668642,93734.0,93733.0,0.00239493]
[1765302007745,0.37029261,93734.0,93733.0,0.00239493]
[1765302008066,0.21498261,93734.0,93733.0,0.00039493]
[1765302008286,0.21498261,93734.0,93733.0,0.00139493]
[1765302008513,0.22403017,93738.0,93733.0,0.02268466]
[1765302008718,0.47478919,93761.0,93739.0,0.02128973]
[1765302008719,0.21335612,93740.0,93739.0,0.02128973]
[1765302009003,0.22402392,93740.0,93739.0,0.02128973]
[1765302009746,0.22402392,93740.0,93735.0,0.01066837]
[1765302009747,0.2240191,93742.0,93741.0,0.02128973]
[1765302010940,0.2240191,93742.0,93741.0,0.02228973]
[1765302012401,0.22401059,93746.0,93743.0,0.30136746]
[1765302012602,0.21334632,93745.0,93744.0,0.02128973]
[1765302013751,0.21534632,93745.0,93744.0,0.02128973]
[1765302013949,0.21534632,93745.0,93744.0,0.01]
[1765302013950,0.01266723,93745.0,93744.0,0.01]
[1765302014172,0.002,93745.0,93744.0,0.07064]
[1765302014353,0.002,93745.0,93744.0,0.36134]
[1765302014550,0.002,93745.0,93744.0,1.43902]
[1765302015100,0.22400847,93747.0,93746.0,0.3007]
[1765302015291,0.01066689,93748.0,93747.0,0.01]
[1765302015636,0.01066689,93748.0,93747.0,0.07064]
[1765302016298,0.01066689,93748.0,93747.0,0.43902]
[1765302016498,0.01066689,93748.0,93747.0,0.44102]
[1765302016741,0.01066689,93748.0,93747.0,0.36334]
[1765302016939,0.01066678,93749.0,93748.0,0.31198973]
[1765302018132,0.01066678,93749.0,93748.0,0.02128973]
[1765302018434,0.01166678,93749.0,93748.0,0.02128973]
[1765302018636,0.21333788,93748.0,93746.0,0.2907]
[1765302019132,0.21333788,93748.0,93746.0,1.31198973]
[1765302019311,0.21334016,93747.0,93746.0,1.31198973]
[1765302019915,0.09141709,93751.0,93746.0,1.37457973]
[1765302020105,0.09555,93763.0,93732.0,0.01696]
[1765302020106,0.22396893,93763.0,93762.0,0.01]
[1765302021147,0.21330603,93762.0,93761.0,0.04445973]
[1765302021332,0.21330603,93762.0,93761.0,0.04485466]
[1765302021757,0.22396893,93763.0,93762.0,0.02128973]
[1765302023196,0.22396893,93763.0,93762.0,0.02328973]
[1765302025309,0.00022552,93766.0,93763.0,0.01066518]
[1765302025527,0.00022552,93766.0,93765.0,0.2858892]
[1765302025742,0.00022552,93766.0,93765.0,1.5765892]
[1765302026010,0.00022552,93766.0,93765.0,1.6542692]
[1765302026812,0.00022552,93766.0,93765.0,1.6552692]
[1765302027853,0.00022552,93766.0,93765.0,1.6722292]
[1765302028077,0.00022552,93766.0,93765.0,1.6712292]
[1765302028269,0.00022552,93766.0,93765.0,1.6752292]
[1765302028695,0.00022552,93766.0,93765.0,1.6712292]
[1765302028973,0.00022552,93766.0,93765.0,1.6792292]
[1765302029181,0.00022552,93766.0,93765.0,1.6742292]
[1765302029378,0.21322903,93796.0,93765.0,1.6742292]
[1765302029379,0.22389491,93794.0,93793.0,0.02128973]
[1765302029584,0.22389491,93794.0,93793.0,0.61658973]
[1765302030015,0.22389491,93794.0,93793.0,0.12468973]
[1765302030461,0.22389491,93794.0,93793.0,0.01039493]
[1765302030887,0.38307778,93794.0,93793.0,0.00039493]
[1765302031259,0.44560077,93794.0,93793.0,0.00039493]
[1765302031653,0.21330603,93762.0,93761.0,0.02317]
[1765302031778,0.21330603,93762.0,93758.0,0.01]
[1765302031779,0.01066564,93759.0,93758.0,0.01]
[1765302031977,0.21331098,93760.0,93759.0,0.01]
[1765302033250,0.22397623,93761.0,93760.0,0.02128973]
[1765302034237,0.0106653,93762.0,93758.0,0.00011832]
[1765302034238,0.22397239,93762.0,93761.0,0.02128973]
[1765302034441,0.01066507,93764.0,93759.0,0.01066564]
[1765302034442,0.22396685,93764.0,93763.0,0.02128973]
[1765302034643,0.22397089,93763.0,93762.0,0.02128973]
[1765302034842,0.01066507,93764.0,93763.0,0.02128973]
[1765302035098,0.22396327,93766.0,93765.0,0.02128973]
[1765302035280,0.21329003,93770.0,93765.0,0.02128973]
[1765302035281,0.21328858,93770.0,93768.0,0.02128973]
[1765302035574,0.21328858,93770.0,93769.0,0.01]
[1765302036011,0.21328858,93770.0,93764.0,0.21330148]
[1765302036012,0.21330148,93764.0,93763.0,0.02228973]
[1765302036183,0.21330148,93764.0,93763.0,0.001]
[1765302036607,0.21329694,93766.0,93763.0,0.001]
[1765302036939,0.21330022,93765.0,93763.0,0.02128973]
[1765302037109,0.21330648,93762.0,93760.0,0.31198973]
[1765302037324,0.21330648,93762.0,93761.0,0.02128973]
[1765302037472,0.01066496,93765.0,93763.0,0.02128973]
[1765302037676,0.21328966,93770.0,93768.0,0.02128973]
[1765302038017,0.22395699,93768.0,93767.0,0.02128973]
[1765302039296,0.22395115,93771.0,93768.0,0.02128973]
[1765302039297,0.21329005,93770.0,93768.0,0.02128973]
[1765302039524,0.21329005,93770.0,93768.0,0.08387973]
[1765302039701,0.21329005,93770.0,93768.0,0.16155973]
[1765302039886,0.2239546,93769.0,93768.0,0.16155973]
[1765302040487,0.01066427,93771.0,93768.0,0.16155973]
[1765302040691,0.2135043,93774.0,93773.0,0.02128973]
[1765302040927,0.2135043,93774.0,93773.0,0.11112973]
[1765302041698,0.21350422,93774.0,93773.0,0.11112973]
[1765302041899,0.00022549,93774.0,93773.0,1.47950973]
[1765302042214,0.00022549,93774.0,93773.0,1.69479073]
[1765302043400,0.00022549,93774.0,93773.0,1.61811073]
[1765302043606,0.21350422,93774.0,93773.0,0.33095]
[1765302043814,0.00022549,93774.0,93773.0,0.33095]
[1765302043994,0.00022549,93774.0,93773.0,0.39354]
[1765302044170,0.00022549,93774.0,93773.0,0.684501]
[1765302044373,0.00022549,93774.0,93773.0,1.684501]
[1765302046175,0.00022549,93774.0,93773.0,1.683501]
[1765302046379,0.00022549,93774.0,93773.0,1.686501]
[1765302047131,0.00022549,93774.0,93773.0,1.684501]
[1765302047334,0.00022549,93774.0,93773.0,1.687501]
[1765302047537,0.00022549,93774.0,93773.0,1.53953551]
[1765302048348,0.00022549,93774.0,93773.0,1.55649551]
[1765302050657,0.00022549,93774.0,93773.0,1.07859]
[1765302051029,0.00022549,93774.0,93773.0,0.016]
[1765302051030,0.21350422,93774.0,93773.0,0.016]
[1765302051271,0.21350422,93774.0,93773.0,0.006]
[1765302051448,0.00022549,93774.0,93773.0,0.07771973]
[1765302051650,0.00022549,93774.0,93773.0,1.41584973]
[1765302052078,0.00022549,93774.0,93773.0,1.41284973]
[1765302053354,0.00122549,93774.0,93773.0,1.41484973]
[1765302053791,0.00022549,93774.0,93773.0,1.42976973]
[1765302053988,0.00022549,93774.0,93773.0,1.43276973]
[1765302054350,0.02679381,93820.0,93773.0,1.43276973]
[1765302054351,0.01065904,93817.0,93811.0,0.01065973]
[1765302054564,0.01065938,93814.0,93813.0,0.02128973]
[1765302055494,0.01105666,93814.0,93813.0,0.07171973]
[1765302055717,0.01105666,93814.0,93813.0,0.02128973]
[1765302056299,0.01105666,93814.0,93813.0,0.07171973]
[1765302056586,0.01205666,93814.0,93813.0,0.02128973]
[1765302057325,0.01205666,93814.0,93813.0,0.07171973]
[1765302057778,0.00139728,93814.0,93813.0,0.28490979]
[1765302057977,0.00139728,93814.0,93813.0,1.62603979]
[1765302059010,0.00039728,93814.0,93813.0,1.62603979]
[1765302059421,0.00239728,93814.0,93813.0,1.62603979]
[1765302059577,0.00039728,93814.0,93813.0,1.62603979]
[1765302059884,0.00039728,93814.0,93813.0,1.62703979]
[1765302060277,0.00152423,93814.0,93813.0,1.62703979]
[1765302060473,0.00152423,93814.0,93813.0,1.62903979]
[1765302060674,0.00152423,93814.0,93813.0,1.41584973]
[1765302061452,0.00152423,93814.0,93813.0,1.41484973]
[1765302061637,0.0004,93820.0,93819.0,1.52516616]
[1765302061972,0.01105643,93840.0,93829.0,1.52514344]
[1765302062093,0.01065723,93833.0,93829.0,1.38762973]
[1765302062313,0.01065655,93839.0,93829.0,1.40454973]
[1765302062507,0.22379324,93837.0,93829.0,1.45497973]
[1765302062705,0.0004,93840.0,93829.0,1.45497973]
[1765302063717,0.01105643,93840.0,93829.0,1.45497973]
[1765302063918,0.01065655,93839.0,93829.0,1.45497973]
[1765302064187,0.22378871,93839.0,93829.0,1.45497973]
[1765302064335,0.0004,93840.0,93829.0,1.45597973]
[1765302064958,0.01065711,93834.0,93829.0,1.45497973]
[1765302065189,0.21314956,93831.0,93829.0,1.45697973]
[1765302065394,0.21315017,93831.0,93829.0,1.38962973]
[1765302065602,0.01065689,93836.0,93829.0,1.38962973]
[1765302065603,0.010657,93835.0,93829.0,0.75721]
[1765302065755,0.0004,93850.0,93829.0,0.66967]
[1765302066115,0.0004,93850.0,93829.0,1.42977]
[1765302066361,0.0004,93850.0,93829.0,1.42877]
[1765302066690,0.0004,93850.0,93829.0,1.44005973]
[1765302066889,0.01065666,93838.0,93829.0,1.44005973]
[1765302067094,0.0004,93840.0,93829.0,1.45697973]
[1765302067335,0.0004,93840.0,93829.0,1.45997973]
[1765302067697,0.0008506,93830.0,93829.0,1.46097973]
[1765302068138,0.0008506,93830.0,93829.0,1.45997973]
[1765302068511,0.0018506,93830.0,93829.0,1.45797973]
[1765302068968,0.0018506,93830.0,93829.0,1.46097973]
[1765302069247,0.0018506,93830.0,93829.0,1.45797973]
[1765302069594,0.0018506,93830.0,93829.0,1.45997973]
[1765302071699,0.0018506,93830.0,93829.0,1.44305973]
[1765302071936,0.0018506,93830.0,93829.0,1.45997973]
[1765302072140,0.0018506,93830.0,93829.0,0.45997973]
[1765302073402,0.0018506,93830.0,93829.0,1.44305973]
[1765302074045,0.0018506,93830.0,93829.0,1.39262973]
[1765302074253,0.21500204,93830.0,93829.0,1.34219973]
[1765302074452,0.21500204,93830.0,93829.0,0.13628973]
[1765302074725,0.21661491,93830.0,93829.0,0.02628973]
[1765302075021,0.21661491,93830.0,93829.0,0.13158973]
[1765302075227,0.21561491,93830.0,93829.0,0.12858973]
[1765302075629,0.21561491,93830.0,93829.0,0.12658973]
[1765302075787,0.0008506,93830.0,93829.0,0.17701973]
[1765302075992,0.0018506,93830.0,93829.0,0.17701973]
[1765302076561,0.0018506,93830.0,93829.0,0.46971973]
[1765302076748,0.0018506,93830.0,93829.0,1.41484973]
[1765302077341,0.0018506,93830.0,93829.0,1.36441973]
[1765302078954,0.0018506,93830.0,93829.0,1.41484973]
[1765302079157,0.0018506,93830.0,93829.0,1.43176973]
[1765302079540,0.0018506,93830.0,93829.0,1.38133973]
[1765302079744,0.0018506,93830.0,93829.0,1.33090973]
[1765302080202,0.0018506,93830.0,93829.0,1.38133973]
[1765302080915,0.0018506,93830.0,93829.0,1.33090973]
[1765302081082,0.0018506,93830.0,93829.0,1.43176973]
[1765302081482,0.0018506,93830.0,93829.0,1.33090973]
[1765302081685,0.0018506,93830.0,93829.0,1.31398973]
[1765302082202,0.1601906,93830.0,93829.0,1.2927]
[1765302082376,0.1601906,93830.0,93829.0,0.2854]
[1765302082825,0.16180347,93830.0,93829.0,0.2613]
[1765302083010,0.16180347,93830.0,93829.0,0.2453]
[1765302084924,0.0018506,93830.0,93829.0,1.31398973]
[1765302085637,0.1601906,93830.0,93829.0,1.3027]
[1765302086205,0.0018506,93830.0,93829.0,1.3027]
[1765302086399,0.0668006,93830.0,93829.0,1.3027]
[1765302086600,0.16180347,93830.0,93829.0,0.568]
[1765302087205,0.16180347,93830.0,93829.0,0.2773]
[1765302090115,0.1601906,93830.0,93829.0,0.2773]
[1765302090438,0.1601906,93830.0,93829.0,0.2873]
[1765302091264,0.1601906,93830.0,93829.0,0.2773]
[1765302097744,0.18819728,93830.0,93829.0,0.002]
[1765302097942,0.18819728,93830.0,93810.0,0.74241151]
[1765302097943,0.01065848,93822.0,93810.0,0.74241151]
[1765302098140,0.09724,93820.0,93810.0,0.74241151]
[1765302098385,0.09885287,93820.0,93810.0,0.74241151]
[1765302098592,0.19224287,93820.0,93811.0,0.01065973]
[1765302098766,0.19224287,93820.0,93811.0,0.22385262]
[1765302099304,0.19224287,93820.0,93819.0,0.00111832]
[1765302099709,0.19424287,93820.0,93819.0,0.00111832]
[1765302100458,0.19424287,93820.0,93819.0,0.00011832]
[1765302101678,0.40741703,93820.0,93819.0,0.00011832]
[1765302102474,0.46994002,93820.0,93819.0,0.00011832]
[1765302102882,0.21324007,93791.0,93790.0,0.2907]
[1765302103085,0.21325599,93784.0,93782.0,0.01]
[1765302103284,0.04693,93781.0,93776.0,1.0]
[1765302103485,0.09339,93784.0,93778.0,1.0]
[1765302103842,0.04927,93792.0,93778.0,1.0]
[1765302103843,0.09339,93785.0,93778.0,0.2907]
[1765302103984,0.11422,93779.0,93778.0,0.30136348]
[1765302104184,0.11422,93779.0,93778.0,1.30136348]
[1765302104382,0.11422,93779.0,93778.0,1.2907]
[1765302104383,0.20761,93779.0,93778.0,1.2907]
[1765302104567,0.20761,93779.0,93778.0,1.31398973]
[1765302104970,0.20761,93779.0,93778.0,1.31198973]
[1765302105393,0.20761,93779.0,93778.0,1.31298973]
[1765302105877,0.20761,93779.0,93778.0,1.2917]
[1765302106836,0.20761,93779.0,93778.0,1.1852]
[1765302107163,0.20761,93779.0,93778.0,0.001]
[1765302107584,0.20761,93779.0,93776.0,0.00039728]
[1765302107733,0.02657,93777.0,93776.0,1.29109728]
[1765302107915,0.02657,93777.0,93776.0,1.19899728]
[1765302108210,0.11996,93777.0,93776.0,0.29109728]
[1765302108413,0.11996,93777.0,93776.0,1.18489728]
[1765302108969,0.12096,93777.0,93776.0,1.18489728]
[1765302110154,0.12096,93777.0,93776.0,1.20618701]
[1765302112798,0.12096,93777.0,93776.0,1.20718701]
[1765302113202,0.12096,93777.0,93776.0,1.20618701]
[1765302115134,0.06268,93777.0,93776.0,1.52566119]
[1765302115655,0.16218,93777.0,93776.0,1.52566119]
[1765302115896,0.16218,93777.0,93776.0,0.89779728]
[1765302116372,0.04738,93785.0,93782.0,0.01066302]
[1765302116598,0.04738,93785.0,93784.0,1.22325514]
[1765302116942,0.10906,93785.0,93784.0,1.22325514]
[1765302117138,0.20856,93785.0,93784.0,1.22325514]
[1765302117642,0.20856,93785.0,93784.0,1.22325599]
[1765302117994,0.20956,93785.0,93784.0,1.22325599]
[1765302118547,0.35786,93785.0,93784.0,1.22325599]
[1765302119414,0.25836,93785.0,93784.0,1.22325599]
[1765302119755,0.35786,93785.0,93784.0,1.22325599]
[1765302120155,0.35686,93785.0,93784.0,1.22325599]
[1765302120356,0.20856,93785.0,93784.0,1.22425599]
[1765302120561,0.20856,93785.0,93784.0,1.22625599]
[1765302120759,0.04738,93785.0,93784.0,1.51695599]
[1765302121005,0.04927,93792.0,93791.0,0.21324007]
[1765302121216,0.04927,93800.0,93799.0,1.22322188]
[1765302121417,0.04927,93800.0,93797.0,0.01066132]
[1765302121625,0.06168,93798.0,93797.0,1.22388775]
[1765302121842,0.20998,93798.0,93797.0,1.23388775]
[1765302122048,0.30948,93798.0,93797.0,0.5124]
[1765302122253,0.30948,93798.0,93795.0,0.02128973]
[1765302122493,0.0275,93796.0,93795.0,0.02128973]
[1765302122688,0.0275,93796.0,93793.0,0.31198973]
[1765302122940,0.0995,93795.0,93794.0,1.0]
[1765302123214,0.19249987,93795.0,93794.0,1.0]
[1765302123434,0.21327191,93777.0,93749.0,0.19117091]
[1765302123641,0.01066598,93756.0,93753.0,0.0320123]
[1765302123853,0.00161287,93756.0,93753.0,0.00020526]
[1765302124070,0.08879,93754.0,93753.0,0.00020526]
[1765302124483,0.1862,93754.0,93753.0,0.00020526]
[1765302124691,0.18781287,93754.0,93753.0,0.00020526]
[1765302126017,0.18881287,93754.0,93753.0,0.00020526]
[1765302126189,0.19081287,93754.0,93753.0,0.00020526]
[1765302126712,0.18881287,93754.0,93753.0,0.00020526]
[1765302126915,0.25133586,93754.0,93753.0,0.00020526]
[1765302127478,0.18881287,93754.0,93753.0,0.00020526]
[1765302127677,0.20512,93754.0,93753.0,0.00020526]
[1765302127893,0.1862,93754.0,93753.0,0.02149499]
[1765302128096,0.1882,93754.0,93753.0,0.00020526]
[1765302128313,0.1912,93754.0,93753.0,0.00020526]
[1765302129086,0.1892,93754.0,93753.0,0.00020526]
[1765302129296,0.1862,93754.0,93753.0,0.00120526]
[1765302130554,0.1872,93754.0,93753.0,0.00120526]
[1765302130723,0.1872,93754.0,93753.0,0.00020526]
[1765302131122,0.1882,93754.0,93753.0,0.00020526]
[1765302132808,0.1882,93754.0,93753.0,0.21353176]
[1765302132993,0.09079,93754.0,93753.0,0.02149499]
[1765302133205,0.002,93754.0,93753.0,0.31219499]
[1765302133608,0.002,93754.0,93753.0,0.37734499]
[1765302133825,0.002,93754.0,93753.0,0.44549499]
[1765302134027,0.002,93754.0,93753.0,0.37734499]
[1765302134234,0.002,93754.0,93753.0,0.31219499]
[1765302134434,0.09741,93766.0,93765.0,0.02128973]
[1765302134847,0.16397,93766.0,93763.0,0.01066518]
[1765302135061,0.06656,93764.0,93763.0,0.01066518]
[1765302135475,0.16397,93764.0,93762.0,0.0106653]
[1765302135680,0.02618,93763.0,93762.0,0.0106653]
[1765302135850,0.12359,93763.0,93760.0,0.01066552]
[1765302136012,0.06656,93761.0,93758.0,0.22398031]
[1765302136214,0.06616,93759.0,93758.0,0.01066575]
[1765302136677,0.16357,93759.0,93757.0,0.22398165]
[1765302136886,0.02658,93758.0,93757.0,0.24527138]
[1765302137505,0.12399,93758.0,93757.0,0.24527138]
[1765302138331,0.12399,93758.0,93757.0,0.23460551]
[1765302138533,0.1483,93767.0,93766.0,0.23458453]
[1765302139116,0.21064,93767.0,93766.0,0.23458453]
[1765302139313,0.30594,93767.0,93766.0,0.23458453]
[1765302139740,0.30594,93767.0,93766.0,0.21329693]
[1765302139940,0.30594,93767.0,93763.0,0.01066518]
[1765302140105,0.06234,93764.0,93761.0,0.01066541]
[1765302140300,0.06234,93762.0,93760.0,0.22397434]
[1765302140518,0.09467,93766.0,93760.0,0.22397434]
[1765302140718,0.0953,93765.0,93762.0,0.0106653]
[1765302140961,0.0953,93765.0,93764.0,0.23459121]
[1765302141362,0.15764,93765.0,93764.0,0.23459121]
[1765302142338,0.15764,93765.0,93764.0,0.23559121]
[1765302143031,0.1483,93767.0,93766.0,0.23458666]
[1765302144290,0.1483,93767.0,93766.0,0.23558666]
[1765302144693,0.1483,93767.0,93766.0,0.52628666]
[1765302145077,0.1483,93767.0,93766.0,0.52528666]
[1765302145482,0.1483,93767.0,93766.0,0.52728666]
[1765302145825,0.1483,93767.0,93766.0,0.52928666]
[1765302147557,0.1483,93767.0,93766.0,0.65977666]
[1765302147995,0.1483,93767.0,93766.0,0.52928666]
[1765302148273,0.04768,93768.0,93767.0,0.51399465]
[1765302148274,0.1483,93768.0,93767.0,0.51399465]
[1765302149416,0.1483,93768.0,93767.0,0.51599465]
[1765302149983,0.1483,93768.0,93767.0,0.51799465]
[1765302154092,0.1483,93773.0,93772.0,0.23457301]
[1765302154365,0.1483,93775.0,93774.0,0.23456846]
[1765302154527,0.2436,93775.0,93774.0,0.23456846]
[1765302154725,0.30594,93775.0,93774.0,0.23456846]
[1765302156273,0.21064,93775.0,93774.0,0.23456846]
[1765302156682,0.21064,93775.0,93774.0,0.23556846]
[1765302157679,0.1483,93775.0,93774.0,0.28661873]
[1765302159655,0.30594,93775.0,93774.0,0.011]
[1765302159859,0.30594,93775.0,93774.0,0.001]
[1765302160269,0.30755287,93775.0,93774.0,0.001]
[1765302160698,0.15925287,93775.0,93770.0,0.02128973]
[1765302160898,0.0953,93774.0,93770.0,0.02128973]
[1765302161101,0.11002,93771.0,93770.0,0.02128973]
[1765302161476,0.20532,93771.0,93770.0,0.02128973]
[1765302162278,0.20532,93771.0,93770.0,0.23457756]
[1765302162969,0.20532,93771.0,93770.0,0.02128973]
[1765302163183,0.20532,93771.0,93770.0,0.02228973]
[1765302163610,0.20532,93771.0,93770.0,0.23457756]
[1765302163974,0.20532,93771.0,93770.0,0.02228973]
[1765302165114,0.20532,93771.0,93770.0,0.23557756]
[1765302165755,0.20532,93771.0,93770.0,0.21428783]
[1765302166286,0.0953,93782.0,93779.0,0.01066336]
[1765302166418,0.04738,93783.0,93782.0,0.23455027]
[1765302166822,0.10972,93783.0,93782.0,0.23455027]
[1765302167250,0.04738,93783.0,93782.0,0.23455027]
[1765302167653,0.04768,93795.0,93794.0,0.02128973]
[1765302168060,0.11002,93795.0,93794.0,0.02128973]
[1765302168298,0.20532,93795.0,93794.0,0.02128973]
[1765302168500,0.20532,93795.0,93793.0,0.02128973]
[1765302168707,0.09018,93794.0,93792.0,0.02128973]
[1765302169089,0.30341346,93794.0,93792.0,0.02128973]
[1765302169269,0.09018,93794.0,93792.0,0.02128973]
[1765302169428,0.27257688,93795.0,93792.0,0.02128973]
[1765302169429,0.1563,93793.0,93792.0,0.02128973]
[1765302171369,0.1583,93793.0,93792.0,0.02128973]
[1765302171794,0.1593,93793.0,93789.0,0.02128973]
[1765302171994,0.1483,93792.0,93789.0,0.02128973]
[1765302172195,0.06612,93790.0,93789.0,0.03195196]
[1765302172381,0.06612,93790.0,93789.0,0.24519658]
[1765302172588,0.1563,93790.0,93789.0,0.24519658]
[1765302173821,0.1563,93790.0,93789.0,0.02128973]
[1765302174022,0.1563,93790.0,93789.0,0.23453435]
[1765302174232,0.1573,93790.0,93789.0,0.23453435]
[1765302174572,0.1583,93790.0,93789.0,0.23453435]
[1765302175404,0.002,93790.0,93789.0,0.58962435]
[1765302175572,0.002,93790.0,93789.0,0.65777435]
[1765302175746,0.002,93790.0,93789.0,0.68977556]
[1765302176071,0.001,93790.0,93789.0,0.68977556]
[1765302176474,0.0001741,93790.0,93789.0,0.68977556]
[1765302176837,0.09018,93817.0,93816.0,0.23447298]
[1765302177061,0.1563,93817.0,93816.0,0.02128973]
[1765302177260,0.1563,93817.0,93816.0,0.23447298]
[1765302178041,0.15669736,93817.0,93816.0,0.23547298]
[1765302178368,0.15669736,93817.0,93816.0,0.02228973]
[1765302179049,0.00039736,93817.0,93816.0,0.23547298]
[1765302179247,0.00039736,93817.0,93816.0,0.59056298]
[1765302180213,0.00039736,93817.0,93816.0,0.58956298]
[1765302180423,0.00039736,93817.0,93816.0,0.52817298]
[1765302180622,0.00039736,93817.0,93816.0,0.52717298]
[1765302181043,0.15669736,93817.0,93816.0,0.51788325]
[1765302181372,0.15931023,93817.0,93816.0,0.013]
[1765302181726,0.15831023,93817.0,93816.0,0.013]
[1765302181924,0.15831023,93817.0,93816.0,0.22318325]
[1765302182127,0.15831023,93817.0,93816.0,0.22518325]
[1765302182555,0.00039736,93817.0,93816.0,0.22518325]
[1765302182758,0.00039736,93817.0,93816.0,0.28957325]
[1765302182978,0.00039736,93817.0,93816.0,0.22518325]
[1765302183122,0.00039736,93817.0,93816.0,0.22618325]
[1765302183505,0.00039736,93817.0,93816.0,0.22318325]
[1765302183905,0.00039736,93817.0,93816.0,0.22518325]
[1765302184031,0.00039736,93817.0,93816.0,0.22318325]
[1765302184433,0.15669736,93817.0,93816.0,0.003]
[1765302184634,0.18309117,93817.0,93816.0,0.005]
[1765302184870,0.18470404,93817.0,93816.0,0.005]